Cogmind - Beta 13 @@@ ROGUE MODE // 2024.06.15 @ 13:43:46 Player: MarKhan Result: Core destroyed Performance ------------- Evolutions (3) 1500 Regions Visited (4) 800 Robots Destroyed (68) 340 Value Destroyed (1919) 1919 Prototype IDs (5) 100 Alien Tech Used (0) 0 Bonus (0) 0 TOTAL SCORE: 4659 Bonus ------- None Cogmind --------- Core Integrity 0/700 Matter 300/300 Energy 96/205 System Corruption 3% Temperature Critical (550) Movement Hovering (218) Ox2 Location -7/Factory Parts ------- > --- POWER (1) -------- Nuclear-Ion Core > --- PROPULSION (3) --- Hovering Weak-Carbon Exoskeleton > --- UTILITY (7) ------ Armored Scrap Engine Large Storage Unit Advanced Visual Processing Unit Improved Signal Interpreter Improved Targeting Computer Hacking Suite > --- WEAPON (2) ------- Flak Gun Cld. Energy Construct/G > --- INVENTORY (15) --- Light Nuclear Core Xenon Bombardment Thruster Improved Cooling System High-capacity Matter Pod (200) Weight Redist. System Improved Sensor Array Hacking Suite Improved Trap Extractor (0/6) Arc Projector Improved EM Pulse Cannon Flak Gun Gauss Cannon Remote Datajack Mace Ripper Peak State ------------ > --- POWER ------------ Reinforced Deuterium Engine > --- PROPULSION ------- Light Treads Advanced Treads Hovering Weak-Carbon Exoskeleton > --- UTILITY ---------- Armored Scrap Engine Large Storage Unit Advanced Visual Processing Unit Improved Sensor Array Medium Reactive Plating Improved Shield Generator > --- WEAPON ----------- Flak Gun Makeshift Shrapnel Gun > --- INVENTORY -------- Light Nuclear Core Micro Nuclear Core Xenon Bombardment Thruster Improved Heat Sink High-capacity Matter Pod Weight Redist. System Hacking Suite Hacking Suite Arc Projector Improved EM Pulse Cannon Flak Gun Gauss Cannon Remote Datajack Mace Ripper [Rating: 56] Favorites ----------- Power Light Ion Engine Engine Light Ion Engine Power Core Micro Nuclear Core Propulsion Light Treads Treads Light Treads Hover Unit Constructs Utility Large Storage Unit Device Seismic Detector Storage Large Storage Unit Processor Advanced Visual Processing Unit Hackware Hacking Suite Protection Light Armor Plating Weapon Makeshift Shrapnel Gun Energy Gun EM Pulse Gun Energy Cannon Beam Cannon Ballistic Gun Makeshift Shrapnel Gun Special Weapon Mining Laser Slashing Weapon Ripper Build | -11 -10 -10 -9 -7 ------- Run | Yrd Mat Sub Rec Fac Slots Evolved 6 | . . . . 6 Power . | . . . . . Propulsion 1 | . . . . 1 Utility 5 | . . . . 5 Weapon . | . . . . . Parts Attached 77 | 7 16 22 6 26 Power 10 | 1 4 2 1 2 Engine 9 | 1 4 2 1 1 Core 1 | . . . . 1 Reactor . | . . . . . Propulsion 12 | 2 3 2 1 4 Treads 11 | 2 3 2 1 3 Leg . | . . . . . Wheel . | . . . . . Hover 1 | . . . . 1 Flight . | . . . . . Utility 38 | 2 3 11 3 19 Device 17 | 1 1 7 1 7 Storage 2 | 1 1 . . . Processor 5 | . . . . 5 Hackware 2 | . . . . 2 Protection 12 | . 1 4 2 5 Artifact . | . . . . . Weapon 17 | 2 6 7 1 1 Energy Gun 5 | 2 2 1 . . Energy Cannon 3 | . 2 1 . . Ballistic Gun 4 | . 1 2 . 1 Ballistic Cannon . | . . . . . Launcher . | . . . . . Special Weapon 3 | . 1 2 . . Impact Weapon . | . . . . . Slashing Weapon 2 | . . 1 1 . Piercing Weapon . | . . . . . Special Melee Weapon . | . . . . . Unidentified Prototypes . | . . . . . Parts Lost 18 | . 2 3 . 13 Power 3 | . 1 . . 2 Propulsion 6 | . . 2 . 4 Utility 6 | . . . . 6 Weapon 3 | . 1 1 . 1 Highest Loss Streak 4 | . 1 1 . 4 To Critical Strikes . | . . . . . Average Slot Usage (%) 95 | . 99 99 100 87 Engine 10 | . 13 14 14 4 Treads 22 | . 27 27 28 14 Hover 1 | . . . . 3 Device 12 | . 9 11 12 16 Storage 11 | . 14 14 14 7 Processor 4 | . . . . 11 Hackware 1 | . . . . 3 Protection 3 | . 4 2 1 5 Energy Gun 4 | . 17 . . 1 Energy Cannon 5 | . 9 10 . . Ballistic Gun 8 | . . 14 14 9 Special Weapon 1 | . 1 2 . . Slashing Weapon 2 | . . . 14 2 Naked Turns . | . . . . . Heaviest Build 67 | 15 30 32 35 67 Greatest Support 65 | 40 40 40 43 65 Greatest Overweight (x) 4 | 1 4 1 . 2 Average Overweight (x) . | . . . . . Largest Inventory Capacity 15 | 8 15 15 15 15 Average Capacity 13 | 7 11 15 15 15 Most Carried 15 | 7 15 15 15 15 Average Carried 13 | 5 10 14 14 14 Final Capacity 15 | 8 15 15 15 15 Final Carried 15 | 7 15 15 15 15 Scrap Engine Consumption 58 | . . . . 58 Constructs Created 3 | . . . . 3 Constructs Modified 7 | . . . . 7 Class Distribution -------------------- 95% | Mutant Dominant Class ---------------- Mutant | -10/Materials Mutant | -10/Subcaves Mutant | -9/Recycling Mutant | -7/Factory Resources | -11 -10 -10 -9 -7 ----------- Run | Yrd Mat Sub Rec Fac Matter Collected 1688 | 270 226 458 50 684 Remotely . | . . . . . Salvage Created 2461 | 111 634 345 57 1314 Parts 153 | 4 49 21 4 75 Haulers Intercepted 4 | . 1 . . 3 Recyclers Shooed 2 | . . . . 2 Parts Field Recycled . | . . . . . Retrieved Matter . | . . . . . Parts Self-Destructed 14 | . . 14 . . Prevented . | . . . . . Kills | -11 -10 -10 -9 -7 ------- Run | Yrd Mat Sub Rec Fac Combat Hostiles Destroyed 41 | . 12 10 1 18 Melee 7 | . . . 1 6 Guns 23 | . 9 4 . 10 Cannons 10 | . 2 6 . 2 Classes Destroyed 14 | 2 6 2 1 3 Worker 5 | . 2 . . 3 Tunneler 1 | 1 . . . . Hauler 4 | . 1 . . 3 Recycler 5 | 1 . . . 4 Operator 2 | . 2 . . . Turret 2 | . . 2 . . Watcher 8 | . 3 . . 5 Swarmer 12 | . 3 6 . 3 Grunt 16 | . 9 . . 7 Brawler 1 | . . . . 1 Sentry 2 | . . . 1 1 Hunter 1 | . . . . 1 Programmer 5 | . . . . 5 Subdweller 4 | . . 4 . . Best Kill Streak 5 | 2 3 5 1 4 Combat Bots Only 3 | . 3 3 1 3 Max Kills in Single Turn 2 | 1 2 1 1 2 Gunslinging . | . . . . . Exploded . | . . . . . Melee 1 | . . . 1 1 Uniques/NPCs Destroyed . | . . . . . Combat | -11 -10 -10 -9 -7 -------- Run | Yrd Mat Sub Rec Fac Hostile Shots Fired 291 | . 62 108 6 115 Missed 76 | . 18 33 1 24 Damage Taken 3614 | . 533 806 68 2207 Core 943 | . 87 121 15 720 Absorbed by Shields 60 | . . . . 60 Redirected to Shielding 32 | . 15 15 . 2 Ignored by Resistances 41 | . . . . 41 Regen/Repaired (Parts) 85 | . . . . 85 Core Remaining (%) 55 | 100 . . 10 . Volleys Fired 198 | 20 67 61 . 50 Largest 2 | 1 2 2 . 2 Hottest 232 | 50 100 100 . 232 Shots Fired 333 | 20 121 97 . 95 Gun 234 | 20 91 36 . 87 Cannon 67 | . 22 37 . 8 Launcher . | . . . . . Special 32 | . 8 24 . . Kinetic 103 | . . 36 . 67 Thermal 139 | 20 30 61 . 28 Explosive . | . . . . . Electromagnetic 91 | . 91 . . . Robot Hit Streak 14 | 12 9 14 . 10 Robot Miss Streak 9 | 2 4 3 . 9 Penetration Max . | . . . . . Secondary Targets 1 | . 1 . . . Max Gunslinging Chain 1 | . 1 . . . Shots Hit Robots 227 | 15 60 47 5 100 Core Hits 133 | 3 24 17 1 88 Critical Kills . | . . . . . Critical Parts Destroyed . | . . . . . Critical Strikes 4 | . 3 . 1 . Corrupt 3 | . 3 . . . Sever 1 | . . . 1 . Melee Attacks 36 | . . . 10 26 Impact . | . . . . . Slashing 36 | . . . 10 26 Piercing . | . . . . . Sneak Attacks 3 | . . . 2 1 Combat Hostiles 1 | . . . 1 . Follow-up Attacks . | . . . . . Damage Inflicted 5057 | 187 1150 816 238 2666 Guns 2870 | 187 756 339 . 1588 Cannons 817 | . 177 477 . 163 Explosions 499 | . 214 . . 285 Melee 862 | . . . 238 624 Ramming 9 | . 3 . . 6 Kinetic 1509 | . . 339 . 1170 Thermal 1867 | 187 391 477 . 812 Explosive . | . . . . . Electromagnetic 810 | . 756 . . 54 Impact . | . . . . . Slashing 862 | . . . 238 624 Piercing . | . . . . . Highest Corruption 8 | . . . . 8 Average Corruption 5 | . . . . 5 Corruption Purged 10 | . . . . 10 Corruption Blocked . | . . . . . Effects 59 | . . . . 59 Message Errors 13 | . . . . 13 Matter Fused 14 | . . . . 14 Heat Flow Errors 11 | . . . . 11 Energy Discharges 5 | . . . . 5 Parts Rejected 1 | . . . . 1 Parts Fused 1 | . . . . 1 Data Loss (minor) 7 | . . . . 7 Data Loss (major) 2 | . . . . 2 Misfires 3 | . . . . 3 Alerts 1 | . . . . 1 Weapon Failures 1 | . . . . 1 Overload Shots 6 | . . . . 6 Overflow Damage 193 | . 31 . . 162 Projectiles 16 | . 3 . . 13 Explosions 177 | . 28 . . 149 Melee . | . . . . . Knockbacks . | . . . . . Impact . | . . . . . Kinetic . | . . . . . Secondary . | . . . . . Self-Inflicted Damage 289 | . 71 . . 218 Shots 8 | . 2 . . 6 Rammed 4 | . 1 . . 3 Targets Rammed 4 | . 1 . . 3 Kicked . | . . . . . Crushed . | . . . . . Highest Temperature 954 | 150 219 20 . 954 Average Temperature 81 | 64 51 5 . 152 Received Heat Transfer 687 | . 159 165 18 345 Effects 16 | . . . . 16 Shutdowns 2 | . . . . 2 Energy Bleed 2 | . . . . 2 Interference 3 | . . . . 3 Short Circuit 1 | . . . . 1 Damage (minor) 2 | . . . . 2 Damage (major) 2 | . . . . 2 Damage (core) 4 | . . . . 4 Siege Activations . | . . . . . Robots Corrupted 1 | . 1 . . . Combat Hostiles 1 | . 1 . . . Parts Fried 3 | . 3 . . . Impact Corruptions . | . . . . . Robots Melted . | . . . . . Combat Hostiles . | . . . . . Parts Melted 2 | 1 . 1 . . Heat Transferred 3116 | 555 620 999 . 942 Parts Sabotaged . | . . . . . Parts Stolen . | . . . . . Parts Stripped . | . . . . . Power Chain Reactions 4 | . 2 . . 2 Alert | -11 -10 -10 -9 -7 ------- Run | Yrd Mat Sub Rec Fac Peak Influence 293 | 10 234 . 239 293 Initial 211 | . 6 . 211 . Average 93 | 3 86 . 95 101 Maximum Alert Level 1 | . 1 . 1 1 Low Security (%) 88 | 100 92 . 63 91 Level 1 11 | . 7 . 36 8 Level 2 . | . . . . . Level 3 . | . . . . . Level 4 . | . . . . . Level 5 . | . . . . . High Security . | . . . . . Max Security . | . . . . . Squads Dispatched 17 | . 5 . . 12 Investigation 2 | . 2 . . . Extermination 4 | . . . . 4 Reinforcement 8 | . 3 . . 5 Assault . | . . . . . Garrison 3 | . . . . 3 Intercept . | . . . . . Searches Triggered . | . . . . . Construction Impeded 2 | . . . . 2 Haulers Reinforced 2 | . . . . 2 Active Scanning Responses . | . . . . . Cargo Convoy Interrupts . | . . . . . Stealth | -11 -10 -10 -9 -7 --------- Run | Yrd Mat Sub Rec Fac Distress Signals 2 | . 2 . . . Communications Jammed . | . . . . . Distress Signals . | . . . . . Times Spotted 80 | . 29 25 1 25 Peak Tracking Total 6 | . 5 6 1 3 Tactical Retreats 4 | . 1 3 . . Traps | -11 -10 -10 -9 -7 ------- Run | Yrd Mat Sub Rec Fac Traps Triggered 3 | . 2 . . 1 Indirectly . | . . . . . Trap Hack Attempts . | . . . . . Triggered . | . . . . . Disarmed . | . . . . . Reprogrammed . | . . . . . Reused . | . . . . . Traps Extracted . | . . . . . Installed . | . . . . . Triggered . | . . . . . Machines | -11 -10 -10 -9 -7 ---------- Run | Yrd Mat Sub Rec Fac Machines Disabled 13 | . 4 2 . 7 Max in Single Turn 5 | . 3 1 . 5 Garrison Access 1 | . . . . 1 Machines Repaired . | . . . . . Machines Dismantled . | . . . . . Machines Sabotaged . | . . . . . Overloaded Fab Kills . | . . . . . Hacking | -11 -10 -10 -9 -7 --------- Run | Yrd Mat Sub Rec Fac Machines Accessed 23 | . 6 1 9 7 Terminals 13 | . 3 . 6 4 Fabricators . | . . . . . Repair Stations 1 | . 1 . . . Recycling Units 7 | . 2 . 3 2 Scanalyzers . | . . . . . Garrison Access 1 | . . . . 1 Total Hacks 61 | . 16 4 25 16 Successful 36 | . 12 4 12 8 Failed 25 | . 4 . 13 8 Catastrophic 6 | . 1 . 3 2 Database Lockouts . | . . . . . Manual 27 | . 9 . 14 4 Terminals 35 | . 8 . 17 10 Fabricators . | . . . . . Repair Stations 2 | . 2 . . . Recycling Units 19 | . 6 . 8 5 Scanalyzers . | . . . . . Garrison Access 1 | . . . . 1 Terminal Hacks 15 | . 2 4 4 5 Record 4 | . . 4 . . Prototype ID Bank 1 | . . . 1 . Open DSF 1 | . . . . 1 Branch Access Points 2 | . 1 . . 1 Emergency Access Points 1 | . . . . 1 Terminal Index 1 | . . . 1 . Alert Level 4 | . 1 . 1 2 Unreport Threat 1 | . . . 1 . Fabricator Hacks . | . . . . . Repair Station Hacks 2 | . 2 . . . Scan Component 1 | . 1 . . . Repair 1 | . 1 . . . Recycling Unit Hacks 8 | . 3 . 3 2 Report Inventory 6 | . 2 . 3 1 Retrieve Components 2 | . 1 . . 1 Scanalyzer . | . . . . . Garrison Access Hacks 1 | . . . . 1 Seal Access 1 | . . . . 1 Unauthorized Hacks 10 | . 5 . 5 . Terminals 5 | . 3 . 2 . Botnet 5 | . 3 . 2 . Fabricators . | . . . . . Repair Stations . | . . . . . Recycling Units 5 | . 2 . 3 . Monitor 3 | . 1 . 2 . Recyclers 2 | . 1 . 1 . Scanalyzers . | . . . . . Garrison Access . | . . . . . Data Cores Recovered . | . . . . . Used . | . . . . . Hacking Detections 16 | . 3 . 8 5 Full Trace Events 1 | . 1 . . . Feedback Events . | . . . . . Feedback Blocked . | . . . . . Robot Schematics Acquired . | . . . . . Robots Built . | . . . . . Authchips . | . . . . . Time . | . . . . . Total Robot Build Rating . | . . . . . Part Schematics Acquired . | . . . . . Parts Built . | . . . . . Authchips . | . . . . . Time . | . . . . . Total Part Build Rating . | . . . . . Parts Repaired 1 | . 1 . . . Time 44 | . 44 . . . Parts Recycled . | . . . . . Recycled Matter . | . . . . . Retrieved Matter . | . . . . . Retrieved Components 15 | . 10 . . 5 Parts Scanalyzed . | . . . . . Part Schematics Acquired . | . . . . . Parts Damaged . | . . . . . Bothacking | -11 -10 -10 -9 -7 ------------ Run | Yrd Mat Sub Rec Fac Used RIF Installer . | . . . . . Robots Hacked . | . . . . . Non-combat . | . . . . . Combat . | . . . . . Robot Hacks Applied . | . . . . . Relay Couplers Released . | . . . . . Fabnet Peak Effective % . | . . . . . Robots Rewired . | . . . . . Allies Hacked . | . . . . . Hacks Repelled . | . . . . . Allies | -11 -10 -10 -9 -7 -------- Run | Yrd Mat Sub Rec Fac Total Allies . | . . . . . Largest Group . | . . . . . Highest-Rated Group . | . . . . . Highest-Rated Ally . | . . . . . Total Orders . | . . . . . Ally Attacks . | . . . . . Total Damage . | . . . . . Kills . | . . . . . Allies Corrupted . | . . . . . Allies Melted . | . . . . . Intel | -11 -10 -10 -9 -7 ------- Run | Yrd Mat Sub Rec Fac Robot Analysis Total . | . . . . . Derelict Logs Recovered 1 | . . 1 . . Drone Launches . | . . . . . Drone Recoveries . | . . . . . Exploration | -11 -10 -10 -9 -7 ------------- Run | Yrd Mat Sub Rec Fac Turns Passed 7740 | 146 1891 1963 911 2829 Spaces Moved 3537 | 60 849 852 546 1230 Core 10 | 7 3 . . . Treads 3295 | 53 846 852 546 998 Legs . | . . . . . Wheels . | . . . . . Hover 232 | . . . . 232 Flight . | . . . . . Fastest Speed 50 | 50 160 160 160 152 Average Speed 174 | 148 160 160 160 201 Slowest Speed 250 | 160 250 240 160 242 Overloaded Moves . | . . . . . Propulsion Burnouts . | . . . . . Robots Hopped . | . . . . . Cave-ins Triggered 1 | . . . . 1 Exploration Rate (%) 51 | 5 88 40 98 28 Regions Visited 4 Branch Regions 2 Pre-discovered Areas . | . . . . . Known Exits Taken . | . . . . . Unknown Exits Taken 4 | 1 1 1 1 . Scrap Searched 6 | . . 6 . . Spaces Dug 15 | . 8 . 4 3 Terrain Destroyed 59 | . 38 . 4 17 Melee 7 | . . . 4 3 Projectile 10 | . 8 . . 2 AOE 42 | . 30 . . 12 Terrain Rammed . | . . . . . Walls Destroyed . | . . . . . Machines Disabled . | . . . . . Actions | -11 -10 -10 -9 -7 --------- Run | Yrd Mat Sub Rec Fac Total 4666 | 93 1241 1307 571 1454 Wait 729 | . 282 365 . 82 Move 3533 | 59 848 851 545 1230 Hop . | . . . . . Pick Up 50 | 7 17 3 3 20 Fast Attach 26 | 7 3 3 . 13 Attach 14 | . 2 2 . 10 Detach 3 | . . . . 3 Swap 37 | . 11 17 6 3 Drop 36 | . 10 5 7 14 Fire 198 | 20 67 61 . 50 Melee 36 | . . . 10 26 Ram 1 | . . . . 1 Kick . | . . . . . Crush 3 | . 1 . . 2 Escape Stasis . | . . . . . Rewire . | . . . . . Trap . | . . . . . Miscellaneous . | . . . . . Route ------- -11/Scrapyard -10/Materials (discovered 5 exits: [*Mat x3] / Min / *Sub) -10/Subcaves (discovered 3 exits: *Mat x2 / *Rec) -9/Recycling -7/Factory (discovered 2 exits: Low x2) History --------- Turn | Location | Event 6 | -11/Scrapyard | Discovered new exit (range 15) 147 | -11/Scrapyard | Entered Materials 307 | -10/Materials | Build established: Mutant 934 | -10/Materials | Discovered new exit (range 15) 1093 | -10/Materials | Repaired Corrupted Visual Processing Unit 1218 | -10/Materials | Discovered new exit (range 12) 1325 | -10/Materials | Discovered new exit (range 8) 1710 | -10/Materials | Discovered new exit (range 15) 1986 | -10/Materials | Identified exit to Mines 2038 | -10/Materials | Entered Subcaves 2107 | -10/Subcaves | Discovered new exit (range 8) 2220 | -10/Subcaves | Disturbed a concealed Subdweller 2285 | -10/Subcaves | A swath of the cavern ceiling suddenly collapsed 2628 | -10/Subcaves | Identified exit to Materials 2797 | -10/Subcaves | Shifting Twisted Machinery released Riot Gun 2801 | -10/Subcaves | Core integrity fell below 50% 2819 | -10/Subcaves | Shifting Twisted Machinery released Sub. Machine Gun 2931 | -10/Subcaves | Visited Clippyterm 2935 | -10/Subcaves | Learned Research machine intel 3578 | -10/Subcaves | Core integrity fell below 20% 3582 | -10/Subcaves | Discovered new exit (range 13) 3646 | -10/Subcaves | Shifting Twisted Machinery released Flamer 3666 | -10/Subcaves | Shifting Twisted Machinery released Sub. Power Source 3842 | -10/Subcaves | Shifting Twisted Machinery released Mak. Shrapnel Gun 3845 | -10/Subcaves | Shifting Twisted Machinery released Ripper 4001 | -10/Subcaves | Entered Recycling 4102 | -9/Recycling | Found Scrap Engine 4886 | -9/Recycling | Discovered new exit (range 9) 4912 | -9/Recycling | Entered Factory 4912 | -7/Factory | Evolved 6 slots: Propulsion x1, Utility x5 5032 | -7/Factory | Identified exit to Lower Caves 5061 | -7/Factory | Crushed by falling debris 5092 | -7/Factory | Lost 3 parts (3u) 5747 | -7/Factory | Garrison activated, responded to threat 5795 | -7/Factory | Lost 4 parts (1n3u) 6942 | -7/Factory | Lost 3 parts (1p1n1w) 7731 | -7/Factory | Core integrity fell below 50% 7739 | -7/Factory | Core integrity fell below 20% 7742 | -7/Factory | Core destroyed Last Messages --------------- 07731_ Overheating: Core damaged (-140). 07731_ U-05 Engineer builds a Wall. 07732_ Flak Gun broken. 07732_ Overheating: Short circuit. 07732_ K-01 Serf collects debris. 07733_ Overheating: System interference. 07733_ Imp. Targeting Computer temporarily disabled. 07733_ Acquired 24 matter. 07735_ Overheating: System interference. 07735_ Arm. Scrap Engine temporarily disabled. 07735_ K-01 Serf collects debris. 07738_ Overheating: Cld. Energy Construct/G damaged (-42). 07739_ Power failure, Nuclear-Ion Core shutdown. 07739_ Overheating: Core damaged (-119). 07739_ K-01 Serf collects debris. 07740_ Overheating: Adv. Visual Processing Unit damaged (-6). 07742_ Overheating: Core damaged (-119). Map ----- +----------------------------------------------------+ | ???????????????# #???????????????# """^""" """ " | | ???????????????# #######?????????# | | ???????????????# #?????????# """ """ ? | | ???????????????# #?????????# """ !! """ ? | | ???????????????# "" #?????????# """ !! """ " | | ??????????######^ " #?????????# | | ??????????? "F #?????????# | | ????????????# ^ "" #?????????# ########## | | ????????????# ^ #?????????# #? # ?? | | ????????????# """ #?###+###?# #? #??? | | ????????????# """ ### #?# # #??? | | ????????????# """ ### # +??? | | ????????????# / #??? | | ????????????#### # # #??? | | ???????????????###+####### !# # #??? | | ???????????????# ######## #? #??? | | ???????????????# ######## #? #??? | | ???????????????# """ + #??#######??? | | ???????????????# """ # #???????????? | | ???????????????# """ # #???????????? | | ???????????????# + #???????????? | | ???????????????############## % #???????????? | | ????????????????# ###### ############# | | ????????????????# # # "%" | | ????????????????# # ! # " #? | | ????????????????# # @% #= %% #? | | ????????????????# +%*k%r%% + | | ????????????????# # ! #[ ######## # | | ????????????????####+######## #?????????? | | ????????>????????? ?????? + ?????? | | ?????????????????###??????############ # ???? | | ?????????????????????????????????????? #???? ????? | | ???????????????????????????????????????#?????????? | | ?????????????????????????????????????????????????? | | ?????????????????????????????????????????????????? | | ?????????????????????????????????????????????????? | | ?????????????????????????????????????????????????? | | ?????????????????????????????????????????????????? | | ?????????????????????????????????????????????????? | | ?????????????????????????????????????????????????? | | ?????????????????????????????????????????????????? | | ?????????????????????????????????????????????????? | | ?????????????????????????????????????????????????? | | ?????????????????????????????????????????????????? | | ?????????????????????????????????????????????????? | | ?????????????????????????????????????????????????? | | ?????????????????????????????????????????????????? | | ?????????????????????????????????????????????????? | | ?????????????????????????????????????????????????? | | ?????????????????????????????????????????????????? | +----------------------------------------------------+ Best States ------------- Heat Dissipation 34 Energy Generation 16 Energy Capacity 290 Matter Stores 300 Matter Capacity 300 Sight Range 20 Robot Scan Range 15 Terrain Scan Range 16 Terrain Scan Density 85 Armor Coverage 225 Resistance: KI 30 Resistance: EX 25 Core Shielding 20 Weapon Shielding 33 Evasion (%) 40 Targeting Accuracy 6 Recoil Reduction 3 Offensive Hacking 10 Item Schematics ----------------- None Robot Schematics ------------------ None Fabricated ------------ Nothing Alien Tech Used ----------------- None Achievements -------------- None Challenges ------------ None Game ------ Seed SigixTargetCasing Manual? 0 Play Time 01:31:15 Cumulative 35.8 hours Start 2024.06.14 @ 02:59:21 End 2024.06.15 @ 13:43:46 Sessions 2 Manual Loads 0 Difficulty Rogue Special Mode None Game No. 33 Rogue 33 Adventurer 0 Explorer 0 Win Type - Total 0 Types 0/0/0/0/0/0/0/0/0 Lore% 27 Gallery% 33 Achievement% 29 Wizard Run 0 Options --------- Layout 1 ASCII 0 Keyboard 1 Movement Arrows Keybinds 0 Fullscreen 2 Font 24/Smallcaps Map View 50x35 Zoom Use 0% Tactical HUD 1 Map Filters NONE Filters NONE Steam 1 RUN: 02bbef32-1547-4cfb-ba5b-847a9d2302df